bitfinex/quotes_ETHUSD_20240717
["timestamp","ask_amount","ask_price","bid_price","bid_amount"]
[1721210786761,2.3998,3491.9,3490.8,0.55]
[1721210786762,3.0,3491.5,3490.8,0.55]
[1721210786968,2.86378,3491.9,3490.9,2.3879]
[1721210787308,2.86378,3491.9,3491.0,0.55]
[1721210787463,3.0,3491.8,3491.0,2.966]
[1721210787783,10.0,3492.0,3491.1,2.4725]
[1721210787957,10.0,3492.0,3491.4,2.416]
[1721210788295,10.0,3492.0,3491.5,0.55]
[1721210791195,2.86377,3491.9,3491.5,0.55]
[1721210791384,2.86377,3491.9,3491.4,0.55]
[1721210791590,2.86386,3491.8,3491.4,0.55]
[1721210791895,12.86375,3492.0,3491.4,0.55]
[1721210792072,12.86375,3492.0,3491.4,3.26825]
[1721210792073,10.0,3492.0,3491.4,3.26825]
[1721210794493,2.86402,3491.6,3491.1,2.3681]
[1721210794696,2.86398,3491.7,3491.1,2.3681]
[1721210795788,5.8638,3491.9,3491.2,0.55]
[1721210795991,2.86385,3491.8,3491.2,0.55]
[1721210796710,2.86396,3491.7,3491.2,0.55]
[1721210796909,5.8638,3491.9,3491.2,0.55]
[1721210797385,3.0,3491.9,3491.3,2.416]
[1721210797710,3.0,3491.9,3491.5,2.3516]
[1721210798095,3.0,3491.9,3491.6,0.55]
[1721210799339,10.0,3492.0,3491.6,0.55]
[1721210799475,3.0,3491.9,3491.6,0.55]
[1721210810070,3.0,3491.9,3491.3,2.416]
[1721210810071,5.86384,3491.9,3491.3,2.416]
[1721210810350,5.86384,3491.9,3491.1,2.3284]
[1721210810351,2.86393,3491.7,3491.1,2.3284]
[1721210812039,2.86402,3491.6,3491.1,2.3284]
[1721210812521,3.0,3491.9,3491.1,2.3284]
[1721210812927,2.86391,3491.8,3491.2,0.55]
[1721210814564,5.72783,3491.8,3491.2,0.55]
[1721210814851,2.86391,3491.8,3491.2,0.55]
[1721210816664,5.72783,3491.8,3491.2,0.55]
[1721210816860,3.0,3491.9,3491.2,0.55]
[1721210817061,2.86386,3491.8,3491.2,0.55]
[1721210820451,2.86414,3491.5,3491.2,0.55]
[1721210820652,2.86414,3491.5,3491.0,0.55]
[1721210821065,2.86394,3491.7,3491.1,2.355]
[1721210821265,2.86401,3491.6,3491.2,0.55]
[1721210822250,3.0,3491.9,3491.2,0.55]
[1721210822661,5.86377,3491.9,3491.2,0.55]
[1721210823189,3.0,3491.9,3491.2,0.55]
[1721210823343,3.0,3491.9,3491.7,2.416]
[1721210823547,3.0,3491.9,3491.8,0.55]
[1721210825982,3.0,3491.9,3491.5,0.55]
[1721210833199,3.0,3491.9,3491.6,0.99578273]
[1721210833417,3.0,3491.9,3491.7,0.55]
[1721210833789,3.0,3491.9,3491.5,0.55]
[1721210833978,3.0,3491.9,3491.6,0.99578661]
[1721210834178,3.0,3491.9,3491.7,0.55]
[1721210834377,3.0,3491.9,3491.8,1.005]
[1721210834578,3.0,3491.9,3491.8,1.555]
[1721210837727,10.0,3492.0,3491.8,4.0907]
[1721210837931,10.0,3492.0,3491.9,3.03926414]
[1721210838425,10.0,3492.0,3491.9,8.78923668]
[1721210838581,10.0,3492.0,3491.9,5.90303414]
[1721210839490,10.0,3492.0,3491.9,5.90271203]
[1721210839690,10.0,3492.0,3491.9,7.51229972]
[1721210840509,10.0,3492.0,3491.9,8.11307885]
[1721210840677,10.0,3492.0,3491.9,7.51229972]
[1721210841078,10.0,3492.0,3491.9,5.24931481]
[1721210841598,10.0,3492.0,3491.9,8.11308481]
[1721210842105,10.0,3492.0,3491.9,7.51229972]
[1721210842310,10.0,3492.0,3491.9,9.92329972]
[1721210842506,10.0,3492.0,3491.9,10.52391824]
[1721210842710,10.0,3492.0,3491.9,10.52390546]
[1721210842886,10.0,3492.0,3491.9,10.52390607]
[1721210844700,10.0,3492.0,3491.9,9.92328755]
[1721210845105,10.0,3492.0,3491.9,10.52390607]
[1721210845493,10.0,3492.0,3491.9,9.92328755]
[1721210845893,10.0,3492.0,3491.9,7.43435769]
[1721210846093,10.0,3492.0,3491.9,9.92331669]
[1721210846794,10.0,3492.0,3491.9,9.92331694]
[1721210849323,10.0,3492.0,3491.9,8.92773011]
[1721210849490,10.0,3492.0,3491.9,9.92331172]
[1721210852730,10.0,3492.0,3491.9,9.92330992]
[1721210855906,10.0,3492.0,3491.9,8.92771574]
[1721210856241,10.0,3492.0,3491.9,9.92328774]
[1721210856809,10.0,3492.0,3491.9,9.92328042]
[1721210858329,10.0,3492.0,3491.9,5.44992273]
[1721210858518,10.0,3492.0,3491.5,2.411]
[1721210858721,10.0,3492.0,3491.6,4.0]
[1721210859042,10.0,3492.0,3491.5,2.411]
[1721210859741,10.0,3492.0,3491.6,4.99574195]
[1721210860038,10.0,3492.0,3491.7,0.55]
[1721210860240,10.0,3492.0,3491.6,0.55]
[1721210860546,10.0,3492.0,3491.6,1.48458685]
[1721210860761,10.0,3492.0,3491.9,2.411]
[1721210860924,10.0,3492.0,3491.9,2.961]
[1721210861647,9.95,3492.0,3491.9,2.961]
[1721210862344,9.95,3492.0,3491.9,1.555]
[1721210863956,9.95,3492.0,3491.9,1.005]
[1721210864123,2.435,3491.6,3491.1,7.44]
[1721210864323,2.86409,3491.5,3491.2,1.005]
[1721210864525,2.86426,3491.3,3491.1,7.44]
[1721210864730,2.86426,3491.3,3490.9,1.005]
[1721210864968,3.0,3491.2,3490.9,1.005]
[1721210865170,3.0,3491.2,3491.1,1.005]
[1721210865344,5.86434,3491.2,3491.1,1.005]
[1721210865682,3.0,3491.2,3491.1,1.005]
[1721210865966,0.0215408,3491.2,3491.1,1.005]
[1721210866349,0.0215408,3491.2,3490.6,2.413]
[1721210866548,0.0215408,3491.2,3490.7,2.2233]
[1721210866724,0.0215408,3491.2,3490.8,0.55]
[1721210868386,0.0215408,3491.2,3490.8,2.8179]
[1721210871675,0.0215408,3491.2,3491.1,4.113]
[1721210871933,1e-08,3491.2,3491.1,10.01683988]
[1721210872238,1e-08,3491.2,3491.1,8.81692021]
[1721210872576,1e-08,3491.2,3491.1,11.68143083]
[1721210873155,1e-08,3491.2,3491.1,8.81701083]
[1721210873370,1e-08,3491.2,3491.1,7.32330453]
[1721210873553,1e-08,3491.2,3491.1,2.963]
[1721210877355,1e-08,3491.2,3491.1,0.55]
[1721210881367,1e-08,3491.2,3490.6,2.413]
[1721210881568,1e-08,3491.2,3490.7,0.55]
[1721210881946,1e-08,3491.2,3490.7,3.26424299]
[1721210882145,1e-08,3491.2,3490.8,2.86466]
[1721210882469,1e-08,3491.2,3491.1,4.113]
[1721210882679,1e-08,3491.2,3491.1,4.663]
[1721210883385,1e-08,3491.2,3491.1,5.65878379]
[1721210883673,1e-08,3491.2,3491.1,7.24424856]
[1721210884059,1e-08,3491.2,3491.1,7.24425035]
[1721210884577,1e-08,3491.2,3491.1,6.24846477]
[1721210885141,1e-08,3491.2,3491.1,7.24425465]
[1721210885572,1e-08,3491.2,3491.1,7.24425422]
[1721210885770,1e-08,3491.2,3491.1,3.13125422]
[1721210885988,1e-08,3491.2,3491.1,0.55]
[1721210886137,1e-08,3491.2,3491.0,0.55]
[1721210892602,2.86434001,3491.2,3491.0,0.55]
[1721210892908,2.86442,3491.1,3490.5,2.413]
[1721210893047,2.86442,3491.1,3490.6,0.55]
[1721210894295,2.8645,3491.0,3490.6,0.55]
[1721210895326,0.0215408,3491.1,3490.6,1.7603]
[1721210896432,2.8859608,3491.1,3490.6,1.7603]
[1721210897178,2.8859608,3491.1,3490.6,0.55]
[1721210898244,2.86451,3491.0,3490.6,0.55]
[1721210898564,5.14226,3490.2,3490.1,0.44904702]
[1721210898851,5.14226,3490.2,3488.8,3.1989561]
[1721210898852,2.86576,3489.5,3488.7,4.113]
[1721210899015,2.86576,3489.5,3488.7,8.113]
[1721210899200,2.86576,3489.5,3488.7,9.21753185]
[1721210899397,3.0,3490.1,3488.7,9.21753185]
[1721210899621,2.2771,3490.2,3489.1,2.413]
[1721210899622,2.86564,3489.7,3489.1,2.413]
[1721210899947,2.86547,3489.9,3489.1,2.413]
[1721210900109,3.0,3489.8,3489.1,2.413]
[1721210900313,3.01723264,3489.8,3489.1,2.6543]
[1721210900799,3.01723264,3489.8,3489.3,1.7]
[1721210901001,3.01723264,3489.8,3489.4,0.55]
[1721210902343,0.01723264,3489.8,3489.4,0.55]
[1721210905417,2.88272264,3489.8,3489.3,1.7]
[1721210906586,2.86568,3489.6,3489.3,1.7]
[1721210906876,2.86568,3489.6,3489.4,0.55]
[1721210907365,2.88291264,3489.6,3489.4,0.55]
[1721210916084,0.01723264,3489.6,3489.4,0.55]
[1721210921906,0.01723264,3489.6,3489.4,2.9555]
[1721210926303,0.01723264,3489.6,3489.5,1.006]
[1721210926519,0.01723264,3489.6,3489.5,1.556]
[1721210929654,0.01723264,3489.7,3489.6,5.7313]
[1721210929874,2.86452,3491.0,3490.0,1.7]
[1721210930018,2.93345055,3491.0,3490.4,1.006]
[1721210931034,0.06893055,3491.0,3490.6,1.006]
[1721210931245,0.06893055,3491.0,3490.9,1.006]
[1721210932346,0.06893055,3491.0,3490.7,2.413]
[1721210932527,0.01378611,3491.0,3490.9,1.7]
[1721210932733,0.01378611,3491.0,3490.9,2.25]
[1721210933674,0.01378611,3491.0,3490.9,5.17187705]
[1721210934234,0.01378611,3491.0,3490.9,8.03646705]
[1721210934458,0.01378611,3491.0,3490.9,9.37970667]
[1721210934970,0.01378611,3491.0,3490.9,10.3754897]
[1721210935124,0.01378611,3491.0,3490.9,10.31820265]
[1721210935321,0.01378611,3491.0,3490.9,9.32241962]
[1721210936520,0.01378611,3491.0,3490.9,3.59323962]
[1721210937952,0.01378611,3491.0,3490.9,6.45782962]
[1721210940452,0.01378611,3491.0,3490.9,2.25]
[1721210945481,0.01378611,3491.0,3490.9,5.11459]
[1721210946973,0.01378611,3491.0,3490.9,9.11459]
[1721210948371,0.01378611,3491.0,3490.9,11.97918]
[1721210949516,3.0,3492.3,3491.5,1.7]
[1721210949686,10.00514445,3492.0,3491.7,2.413]
[1721210949981,10.00514445,3492.0,3491.8,0.55]
[1721210951266,10.00514445,3492.0,3491.6,2.963]
[1721210951675,9.95,3492.0,3491.6,2.963]
[1721210952782,12.302,3492.0,3491.6,2.963]
[1721210952988,9.95,3492.0,3491.6,2.963]
[1721210958611,2.86377,3491.9,3491.2,2.413]
[1721210958951,9.95,3492.0,3491.2,2.413]
[1721210958952,2.864,3491.7,3491.2,2.413]
[1721210959227,5.2311,3491.7,3491.2,2.413]
[1721210959785,5.24212889,3491.7,3491.2,2.413]
[1721210962320,2.87502889,3491.7,3491.2,2.413]
[1721210966031,0.01102889,3491.7,3491.2,2.413]
[1721210966332,0.01102889,3491.7,3491.3,0.55]
[1721210974409,0.01102889,3491.7,3491.4,1.7]
[1721210974767,0.01102889,3491.7,3491.5,0.55]
[1721210976735,0.01102889,3491.7,3491.6,0.99578904]
[1721210976942,0.01102889,3491.7,3491.6,2.413]
[1721210977144,0.01102889,3491.7,3491.6,6.21562388]
[1721210977317,0.01102889,3491.7,3491.6,6.81619319]
[1721210977815,0.01102889,3491.7,3491.6,6.21557467]
[1721210978007,0.01102889,3491.7,3491.6,6.81668649]
[1721210978207,0.01102889,3491.7,3491.6,6.21557467]
[1721210978407,0.01102889,3491.7,3491.6,6.81664849]
[1721210978646,0.01102889,3491.7,3491.6,6.21557467]
[1721210978824,0.01102889,3491.7,3491.6,6.81673185]
[1721210979207,0.01102889,3491.7,3491.6,9.68074185]
[1721210979412,0.01102889,3491.7,3491.6,9.07958467]
[1721210980247,0.01102889,3491.7,3491.6,4.17724185]
[1721210980413,0.01102889,3491.7,3491.6,8.27259004]
[1721210982551,0.01102889,3491.7,3491.6,4.64534819]
[1721210982715,0.01102889,3491.7,3491.6,0.99567555]
[1721210982915,0.01102889,3491.7,3491.6,3.49434036]
[1721210983251,0.01102889,3491.7,3491.6,2.00067555]
[1721210983451,0.01102889,3491.7,3491.6,1.005]
[1721210983614,0.01102889,3491.7,3491.6,2.00078931]
[1721210984015,0.01102889,3491.7,3491.6,2.55078931]
[1721210986168,0.01102889,3491.7,3491.6,4.04443831]
[1721210986834,0.01102889,3491.7,3491.6,4.04440455]
[1721210987851,0.01102889,3491.7,3491.6,4.64556386]
[1721210988072,0.01102889,3491.7,3491.6,5.94245974]
[1721210988621,0.01102889,3491.7,3491.6,5.34130043]
[1721210988960,0.01102889,3491.7,3491.6,4.04440455]
[1721210989901,0.01102889,3491.7,3491.6,4.64556386]
[1721210990186,0.01102889,3491.7,3491.6,4.04429835]
[1721210990550,0.01102889,3491.7,3491.6,2.55071934]
[1721210990944,2.31822889,3491.7,3491.3,0.60115931]
[1721210991145,2.31822889,3491.7,3491.3,1.005]
[1721210991146,2.86422,3491.4,3491.3,1.005]
[1721210992001,2.87524889,3491.4,3491.3,1.005]
[1721210992208,2.8643,3491.3,3491.1,7.44]
[1721210992413,2.86435,3491.2,3490.8,0.60115931]
[1721210992599,2.86435,3491.2,3490.9,2.48986427]
[1721210992775,2.86435,3491.2,3491.0,0.99594571]
[1721210992976,2.86435,3491.2,3490.8,0.60115931]
[1721210993207,5.17167,3491.1,3490.9,2.48988841]
[1721210993378,5.17167,3491.1,3490.7,2.413]
[1721210993579,5.17167,3491.1,3490.8,0.99601264]
[1721210993783,2.86451,3491.0,3490.7,2.413]
[1721210994013,2.87553889,3491.0,3490.7,2.413]
[1721210998881,0.01102889,3491.0,3490.7,2.413]
[1721211000688,0.01102889,3491.0,3490.3,4.71415931]
[1721211000919,0.01102889,3491.0,3490.4,3.04013777]
[1721211001219,0.01102889,3491.0,3490.4,0.55]
[1721211001919,0.01102889,3491.0,3490.5,0.99604815]
[1721211002087,0.01102889,3491.0,3490.7,2.413]
[1721211002504,0.01102889,3491.0,3490.8,0.55]
[1721211004324,0.01102889,3491.0,3490.8,0.99570045]
[1721211012435,0.01102889,3491.0,3490.9,1.005]
[1721211012635,0.01102889,3491.0,3490.9,1.555]
[1721211014126,0.01102889,3491.0,3490.9,3.9077]
[1721211014338,0.01102889,3491.1,3491.0,5.729]
[1721211014655,9.95,3492.0,3491.9,1.7]
[1721211014850,9.99411555,3492.0,3491.9,3.255]
[1721211017263,9.99411555,3492.0,3491.9,4.25059864]
[1721211017264,9.95,3492.0,3491.9,4.25059864]
[1721211018260,9.95,3492.0,3491.9,3.255]
[1721211019050,9.95,3492.0,3491.9,6.11877]
[1721211019240,9.95,3492.0,3491.9,7.32466666]
[1721211020872,9.95,3492.0,3491.9,11.18402287]
[1721211020873,2.541,3492.0,3491.9,11.18402287]
[1721211021075,2.541,3492.0,3491.9,16.02395047]
[1721211021375,2.541,3492.0,3491.9,13.53504659]
[1721211021576,2.541,3492.0,3491.9,19.04357677]
[1721211021774,2.541,3492.0,3491.9,18.14356684]
[1721211022071,2.541,3492.0,3491.9,19.04221411]
[1721211022271,2.541,3492.0,3491.9,18.14356684]
[1721211022567,2.541,3492.0,3491.9,22.14356684]
[1721211023674,2.541,3492.0,3491.9,25.00733684]
[1721211024243,2.541,3492.0,3491.9,27.31011523]
[1721211024698,2.541,3492.0,3491.9,27.30999575]
[1721211024901,2.541,3492.0,3491.9,23.54844736]
[1721211025374,2.541,3492.0,3491.9,24.14683791]
[1721211026171,2.541,3492.0,3491.9,27.01060791]
[1721211026377,2.541,3492.0,3491.9,25.51756149]
[1721211027078,2.541,3492.0,3491.9,22.65379149]
[1721211027377,2.541,3492.0,3491.9,25.51756149]
[1721211027563,2.541,3492.0,3491.9,22.65383011]
[1721211028092,2.541,3492.0,3491.9,22.65384152]
[1721211028396,2.541,3492.0,3491.9,22.05545097]
[1721211029112,2.541,3492.0,3491.9,24.91922097]
[1721211029316,2.541,3492.0,3491.9,22.05545097]
[1721211029911,2.541,3492.0,3491.9,24.91922097]
[1721211030293,2.541,3492.0,3491.9,22.05545097]
[1721211030822,2.541,3492.0,3491.9,24.91922097]
[1721211031026,0.01151571,3492.6,3492.5,7.42654]
[1721211031314,0.01151571,3492.6,3492.5,12.79424]
[1721211031809,0.01151571,3492.6,3492.5,16.79424]
[1721211032574,0.01151571,3492.6,3492.5,14.38654]
[1721211033689,0.01151571,3492.6,3492.5,11.52327]
[1721211034405,0.01151571,3492.6,3492.5,13.209328]
[1721211034605,0.01151571,3492.6,3492.5,9.11327]
[1721211034785,0.01151571,3492.6,3492.5,6.25]
[1721211034988,0.01151571,3492.6,3492.5,2.25]
[1721211039990,0.01151571,3492.6,3492.5,5.11327]
[1721211040183,0.01151571,3492.6,3492.5,5.910931]
[1721211040601,0.01151571,3492.6,3492.5,8.320931]
[1721211042205,0.01151571,3492.6,3492.5,7.52327]
[1721211042402,0.01151571,3492.6,3492.5,4.66]
[1721211043003,0.01151571,3492.6,3492.5,7.52327]
[1721211044281,0.01151571,3492.6,3492.5,6.11727]
[1721211045405,0.01151571,3492.6,3492.5,10.11727]
[1721211045582,0.01151571,3492.6,3492.5,11.415333]
[1721211046220,0.01151571,3492.6,3492.5,8.552063]
[1721211046384,0.01151571,3492.6,3492.5,7.254]
[1721211046824,0.01151571,3492.6,3492.5,3.254]
[1721211048915,0.01151571,3492.6,3492.5,6.11727]
[1721211053123,0.01151571,3492.6,3492.5,6.11727]
[1721211053524,0.01151571,3492.6,3492.5,10.11727]
[1721211054034,0.01151571,3492.6,3492.5,7.254]
[1721211054239,0.01151571,3492.6,3492.5,8.05826788]
[1721211056924,0.01151571,3492.6,3492.5,3.254]
[1721211058344,0.01151571,3492.6,3492.5,4.24943153]
[1721211058642,5.35700571,3492.6,3492.2,1.004]
[1721211058846,2.49381571,3492.6,3492.3,4.0]
[1721211059011,2.86359,3492.2,3491.9,7.44]
[1721211059234,2.86359,3492.2,3491.5,16.39368714]
[1721211059235,2.86375,3492.0,3491.5,3.924]
[1721211059556,2.86377,3491.9,3491.5,3.924]
[1721211059733,2.86377,3491.9,3491.7,5.004]
[1721211059938,2.86377,3491.9,3491.7,1.004]
[1721211060847,2.86368,3492.0,3491.7,1.004]
[1721211061157,2.86368,3492.0,3491.9,1.004]
[1721211061356,2.86368,3492.0,3491.7,1.004]
[1721211062057,2.86377,3491.9,3491.7,1.004]
[1721211065649,5.34595,3492.1,3491.7,1.004]
[1721211066054,2.86377,3491.9,3491.5,2.92]
[1721211066238,2.86377,3491.9,3491.6,1.004]
[1721211066570,2.86397,3491.7,3491.6,1.004]
[1721211066778,2.86377,3491.9,3491.6,1.004]
[1721211067942,2.3642,3491.8,3491.5,2.92]
[1721211068148,2.86401,3491.6,3491.5,2.92]
[1721211069650,2.87283311,3491.6,3491.5,2.92]
[1721211072692,2.87283311,3491.6,3491.1,1.004]
[1721211072693,2.86415,3491.5,3491.1,1.004]
[1721211073216,2.86427,3491.3,3491.1,1.004]
[1721211074001,2.87309311,3491.3,3491.1,1.004]
[1721211074423,2.86434,3491.2,3491.0,1.004]
[1721211075292,2.8645,3491.0,3490.9,7.44]
[1721211075935,2.87332311,3491.0,3490.9,7.44]
[1721211078242,5.73782311,3491.0,3490.9,7.44]
[1721211078446,0.00882311,3491.0,3490.7,1.004]
[1721211078623,0.00882311,3491.0,3490.9,1.004]
[1721211079232,2.87332311,3491.0,3490.9,1.004]
[1721211079438,2.87332311,3491.0,3490.7,1.004]
[1721211080460,0.00882311,3491.0,3490.7,1.004]
[1721211087168,0.00882311,3491.0,3490.5,1.004]
[1721211088540,0.00882311,3491.0,3490.7,1.004]
[1721211089779,0.00882311,3491.0,3490.3,7.44]
[1721211089945,0.00882311,3491.0,3490.8,1.004]
[1721211097164,0.00882311,3491.0,3490.8,3.86861]
[1721211097362,0.00882311,3491.0,3490.9,0.55]
[1721211101118,0.00882311,3491.0,3490.9,1.004]
[1721211104368,0.00882311,3491.0,3490.9,1.99995151]
[1721211104704,0.00882311,3491.0,3490.9,2.00365721]
[1721211104997,0.00882311,3491.0,3490.9,2.99960646]
[1721211105300,0.00882311,3491.0,3490.9,2.00365721]
[1721211105797,0.00882311,3491.0,3490.9,5.04348997]
[1721211105970,0.00882311,3491.0,3490.9,7.90807997]
[1721211106168,5.72716,3492.2,3491.0,1.7]
[1721211106499,0.03529245,3491.9,3491.7,1.004]
[1721211109033,2.3014,3492.2,3491.7,1.004]
[1721211117604,2.2528,3492.5,3491.9,1.004]
[1721211119469,2.2528,3492.5,3491.7,1.004]
[1721211120322,2.2528,3492.5,3491.9,1.004]
[1721211120521,2.2528,3492.5,3491.5,2.86405]
[1721211120721,2.2528,3492.5,3491.7,1.004]
[1721211121954,0.00975109,3492.6,3492.3,1.004]
[1721211122261,0.00975109,3492.6,3492.5,1.004]
[1721211124065,0.00975109,3492.6,3492.5,7.83417]
[1721211124633,0.00975109,3492.6,3492.5,12.24279105]
[1721211124855,0.00975109,3492.6,3492.5,13.73587123]
[1721211125235,0.00975109,3492.6,3492.5,12.24279105]
[1721211125443,0.00975109,3492.6,3492.5,14.36018807]
[1721211125648,0.00780087,3492.7,3492.6,5.72638]
[1721211125831,0.01560174,3492.7,3492.6,7.27173105]
[1721211126153,0.01560174,3492.7,3492.6,3.41319]
[1721211126761,0.01560174,3492.7,3492.6,6.27638]
[1721211127057,0.01560174,3492.7,3492.6,5.40368976]
[1721211128130,0.00780087,3492.7,3492.6,5.40368976]
[1721211129523,0.00780087,3492.7,3492.6,8.26687976]
[1721211129728,0.00780087,3492.7,3492.6,9.40368976]
[1721211132474,0.00780087,3492.7,3492.6,12.26687976]
[1721211132829,0.00780087,3492.7,3492.6,9.40368976]
[1721211133560,0.00780087,3492.7,3492.6,12.26687976]
[1721211135139,0.00780087,3492.7,3492.6,9.40368976]
[1721211136245,0.00780087,3492.7,3492.6,1.99049976]
[1721211136469,0.00780087,3492.7,3492.6,2.99449976]
[1721211141200,0.00780087,3492.7,3492.6,8.25198976]
[1721211142389,0.00780087,3492.7,3492.6,11.11517976]
[1721211142894,0.00780087,3492.7,3492.6,15.11517976]
[1721211145673,1e-08,3492.7,3492.6,15.11517976]
[1721211146197,2.86206,3494.0,3492.9,1.7]
[1721211146506,3.0,3493.9,3493.4,1.004]
[1721211148508,5.86217,3493.9,3493.4,1.004]
[1721211148692,5.86217,3493.9,3493.0,1.004]
[1721211149097,5.86217,3493.9,3493.2,1.004]
[1721211152522,5.86217,3493.9,3492.9,1.7]
[1721211152679,5.86217,3493.9,3493.0,1.004]
[1721211153103,5.3825,3493.9,3493.2,1.004]
[1721211153399,2.3825,3493.9,3493.2,1.004]
[1721211153586,3.0,3493.8,3493.2,1.004]
[1721211156812,3.0,3493.8,3493.4,1.004]
[1721211157314,3.0,3493.8,3493.2,1.004]
[1721211157892,3.0,3494.0,3493.3,2.4018]
[1721211158214,5.4134,3494.1,3493.5,1.004]
[1721211158421,2.4134,3494.1,3493.5,1.004]
[1721211158610,5.22537,3494.4,3493.9,1.004]
[1721211159406,5.22537,3494.4,3493.7,1.004]
[1721211160204,3.0,3494.3,3493.7,1.004]
[1721211161825,5.86181,3494.3,3493.7,1.004]
[1721211162036,5.86181,3494.3,3493.5,1.004]
[1721211163799,2.86189,3494.2,3493.5,1.004]
[1721211165738,2.86218,3493.9,3493.0,2.3231]
[1721211165927,2.86218,3493.9,3493.3,1.004]
[1721211168501,2.86218,3493.9,3493.4,0.9952986]
[1721211168701,2.86218,3493.9,3493.3,1.004]
[1721211169104,2.86218,3493.9,3493.4,0.99530676]
[1721211169304,2.86218,3493.9,3493.3,1.004]
[1721211169505,2.86218,3493.9,3493.4,0.99531033]
[1721211169717,2.86218,3493.9,3493.3,1.004]
[1721211169917,2.86218,3493.9,3493.4,0.99530908]
[1721211170127,2.86218,3493.9,3493.3,1.004]
[1721211170323,2.86218,3493.9,3493.4,0.99530905]
[1721211170643,2.86218,3493.9,3493.3,1.004]
[1721211170949,2.86218,3493.9,3493.4,0.99531034]
[1721211171112,2.86218,3493.9,3493.3,1.004]
[1721211171317,2.86218,3493.9,3493.4,0.99531066]
[1721211171520,2.86218,3493.9,3493.3,1.004]
[1721211171719,2.86218,3493.9,3493.4,0.99530405]
[1721211171950,2.86218,3493.9,3493.3,1.004]
[1721211172244,2.86218,3493.9,3493.4,0.99530487]
[1721211172426,2.86218,3493.9,3493.3,1.004]
[1721211172622,2.86218,3493.9,3493.4,0.99530459]
[1721211172822,2.86218,3493.9,3493.3,1.004]
[1721211173029,2.86218,3493.9,3493.4,2.48823942]
[1721211173225,2.86218,3493.9,3493.3,1.004]
[1721211173451,5.16744,3494.1,3493.4,0.9952896]
[1721211173619,2.86205,3494.0,3493.3,1.004]
[1721211173820,2.86205,3494.0,3493.4,0.99529989]
[1721211174055,2.86205,3494.0,3493.3,1.004]
[1721211174258,2.86205,3494.0,3493.4,0.99530518]
[1721211174461,2.86215,3493.9,3493.3,1.004]
[1721211174748,2.86215,3493.9,3493.4,0.9952874]
[1721211174948,2.86215,3493.9,3493.3,1.004]
[1721211175142,2.86215,3493.9,3493.4,0.99528796]
[1721211175346,2.3054,3494.1,3493.7,1.004]
[1721211175539,8.13124,3494.3,3493.7,1.004]
[1721211176335,8.13124,3494.3,3493.5,3.312]
[1721211176657,8.13124,3494.3,3493.6,0.99522709]
[1721211176850,8.13124,3494.3,3493.5,3.312]
[1721211177049,8.13124,3494.3,3493.6,0.99522469]
[1721211177229,2.86189,3494.2,3493.5,1.004]
[1721211177653,2.86189,3494.2,3493.3,1.004]
[1721211177654,2.2764,3494.1,3493.3,1.004]
[1721211177859,2.2764,3494.1,3493.4,2.48817685]
[1721211178150,2.2764,3494.1,3493.3,1.004]
[1721211178357,2.2764,3494.1,3493.4,2.48819095]
[1721211178655,2.86213,3493.9,3493.3,1.004]
[1721211178858,2.86213,3493.9,3493.1,0.89880371]
[1721211178859,2.2616,3493.8,3493.4,0.99529219]
[1721211179033,2.2616,3493.8,3493.1,1.004]
[1721211179228,2.2616,3493.8,3493.2,0.99533647]
[1721211179423,2.2616,3493.8,3493.1,1.004]
[1721211179647,2.2616,3493.8,3493.2,2.48834075]
[1721211179850,2.2616,3493.8,3493.3,0.9953363]
[1721211180051,2.2616,3493.8,3493.1,1.004]
[1721211180249,2.2616,3493.8,3493.2,2.48831265]
[1721211180452,2.2616,3493.8,3493.3,0.99532506]
[1721211180665,2.2616,3493.8,3493.1,1.004]
[1721211180986,2.2616,3493.8,3493.2,2.48833713]
[1721211181192,2.2616,3493.8,3493.3,3.49229202]
[1721211181350,2.2616,3493.8,3493.3,1.004]
[1721211181554,5.12381,3493.8,3493.3,1.004]
[1721211182469,2.2616,3493.8,3493.3,1.004]
[1721211183276,2.2616,3493.8,3493.4,0.99530057]
[1721211183473,2.2616,3493.8,3493.3,1.004]
[1721211189768,2.2616,3493.8,3493.4,0.99532413]
[1721211189989,2.2616,3493.8,3493.3,1.004]
[1721211190672,2.86213,3493.9,3493.4,0.99529897]
[1721211190895,2.86213,3493.9,3493.3,1.004]
[1721211191185,2.86213,3493.9,3493.4,2.48823826]
[1721211191365,2.86213,3493.9,3493.3,1.004]
[1721211191562,2.86213,3493.9,3493.4,0.99530251]
[1721211191766,2.86213,3493.9,3493.3,1.004]
[1721211192079,2.86213,3493.9,3493.4,0.99531579]
[1721211192280,2.4855,3494.0,3493.3,1.004]
[1721211192604,5.34756,3494.0,3493.4,2.48823036]
[1721211192803,8.20968,3494.0,3493.3,1.004]
[1721211193100,8.20968,3494.0,3493.4,0.9953059]
[1721211193409,2.3672,3493.8,3493.1,1.60320247]
[1721211193569,2.3672,3493.8,3493.2,2.43834207]
[1721211193766,2.3672,3493.8,3493.3,0.99533683]
[1721211193999,2.3672,3493.8,3493.1,1.004]
[1721211194183,2.3672,3493.8,3493.2,0.99535921]
[1721211194380,2.3672,3493.8,3493.1,1.004]
[1721211194593,2.3672,3493.8,3493.2,0.99536339]
[1721211194809,2.3672,3493.8,3493.3,0.99536546]
[1721211195017,2.3672,3493.8,3493.1,1.60320247]